bitfinex/quotes_SOLUSD_20240708
["timestamp","ask_amount","ask_price","bid_price","bid_amount"]
[1720450225366,17.9892,138.98,138.92,0.04265352]
[1720450225569,47.86,138.99,138.92,0.04265352]
[1720450225782,0.17,138.98,138.92,0.04265352]
[1720450226096,20.34,138.98,138.92,0.04265352]
[1720450226284,7.1963,138.96,138.92,0.04265352]
[1720450226608,20.0,138.95,138.92,0.04265352]
[1720450226908,20.0,138.98,138.92,0.04265352]
[1720450227668,7.1978,138.93,138.92,0.04265352]
[1720450227976,20.0,138.93,138.92,0.04265352]
[1720450228176,27.1978,138.93,138.92,0.04265352]
[1720450228391,7.1993,138.91,138.8,100.0]
[1720450228596,20.0,138.93,138.85,100.0]
[1720450228766,20.0,138.92,138.85,100.0]
[1720450228965,7.1951,138.99,138.85,100.0]
[1720450229172,7.1946,139.0,138.85,100.0]
[1720450229478,47.86,139.02,138.85,100.0]
[1720450229680,47.86,139.02,138.88,100.0]
[1720450230002,17.9686,139.14,138.96,100.0]
[1720450230184,47.86,139.14,139.02,100.0]
[1720450230401,47.86,139.14,138.98,7.1949]
[1720450230402,7.1895,139.1,138.98,100.0]
[1720450230599,7.189,139.11,139.0,100.0]
[1720450230913,47.86,139.14,139.02,100.0]
[1720450231116,47.86,139.14,139.0,100.0]
[1720450231326,7.1863,139.16,139.03,0.17]
[1720450231610,47.86,139.18,139.05,0.17]
[1720450231788,7.1875,139.14,139.04,100.0]
[1720450231986,7.1875,139.14,139.0,0.17]
[1720450231987,47.86,139.14,139.0,0.17]
[1720450232193,47.86,139.1,138.95,100.0]
[1720450232694,7.1931,139.03,138.91,100.0]
[1720450232893,47.86,139.06,138.92,100.0]
[1720450232894,7.1915,139.06,138.92,100.0]
[1720450233095,47.86,139.12,138.99,100.0]
[1720450233416,7.1887,139.11,138.99,100.0]
[1720450233708,7.1879,139.13,139.02,100.0]
[1720450233910,7.1881,139.12,139.02,100.0]
[1720450234206,35.9261,139.18,138.98,100.0]
[1720450234207,17.9671,139.15,138.98,100.0]
[1720450234519,47.86,139.07,138.91,100.0]
[1720450234724,20.0,139.06,138.92,100.0]
[1720450234925,7.1938,139.01,138.9,100.0]
[1720450235086,20.0,139.0,138.9,100.0]
[1720450235288,0.17,138.99,138.88,100.0]
[1720450235515,0.17,139.0,138.91,100.0]
[1720450235813,7.5337,139.01,138.89,100.0]
[1720450236013,35.9565,139.06,138.89,100.0]
[1720450236014,17.9757,139.08,138.94,100.0]
[1720450236191,0.17,139.07,138.92,100.0]
[1720450236395,17.9788,139.06,138.9,100.0]
[1720450236593,7.1955,138.98,138.88,100.0]
[1720450236786,47.86,139.0,138.89,100.0]
[1720450236992,0.17,139.01,138.89,100.0]
[1720450237290,7.1958,138.97,138.85,100.0]
[1720450237485,20.17,138.96,138.85,100.0]
[1720450237691,7.1983,138.93,138.82,100.0]
[1720450237932,20.17,138.92,138.8,100.0]
[1720450238100,27.5385,138.92,138.8,100.0]
[1720450238304,7.199,138.91,138.8,100.0]
[1720450238530,20.34,138.9,138.77,100.0]
[1720450238703,7.2058,138.78,138.67,100.0]
[1720450238904,47.86,138.81,138.69,100.0]
[1720450239144,20.0,138.8,138.7,100.0]
[1720450239641,20.0,138.8,138.68,121.63]
[1720450239842,20.0,138.8,138.68,100.0]
[1720450240008,20.0,138.8,138.71,100.0]
[1720450240329,20.0,138.85,138.73,100.0]
[1720450240525,0.17,138.84,138.75,100.0]
[1720450240932,0.17,138.84,138.7,100.0]
[1720450240933,47.86,138.84,138.7,100.0]
[1720450241227,7.2063,138.77,138.68,100.0]
[1720450241428,20.0,138.76,138.66,100.0]
[1720450242003,20.0,138.76,138.68,100.0]
[1720450242204,20.0,138.79,138.66,100.0]
[1720450242399,7.2067,138.76,138.66,100.0]
[1720450242632,27.5472,138.75,138.66,100.0]
[1720450242810,0.17,138.74,138.66,100.0]
[1720450243226,20.0,138.75,138.6,100.0]
[1720450243525,7.2105,138.69,138.58,100.0]
[1720450243727,20.0,138.68,138.6,100.0]
[1720450243922,48.2,138.74,138.65,100.0]
[1720450244112,62.86,138.81,138.66,100.0]
[1720450244113,20.0,138.73,138.66,100.0]
[1720450244317,20.0,138.73,138.62,100.0]
[1720450244517,27.2087,138.73,138.6,100.0]
[1720450244745,48.03,138.72,138.56,100.0]
[1720450245047,20.17,138.73,138.61,100.0]
[1720450245048,20.0,138.73,138.61,100.0]
[1720450245341,7.2097,138.71,138.57,100.0]
[1720450245552,20.34,138.7,138.57,100.0]
[1720450245727,20.17,138.7,138.59,100.0]
[1720450245926,20.0,138.7,138.59,100.0]
[1720450246340,20.17,138.69,138.59,100.0]
[1720450246527,20.17,138.71,138.59,100.0]
[1720450246863,20.17,138.71,138.57,100.0]
[1720450247149,20.17,138.71,138.55,100.0]
[1720450247150,0.17,138.71,138.58,100.0]
[1720450247364,38.0217,138.73,138.58,100.0]
[1720450247365,7.2103,138.69,138.58,100.0]
[1720450247649,20.0,138.7,138.6,100.0]
[1720450247857,0.17,138.69,138.6,100.0]
[1720450248026,0.17,138.72,138.6,100.0]
[1720450248364,47.86,138.74,138.64,100.0]
[1720450248544,47.86,138.74,138.53,15.0]
[1720450248545,47.86,138.79,138.61,100.0]
[1720450248856,47.86,138.71,138.62,0.17]
[1720450249357,47.86,138.71,138.64,100.0]
[1720450249558,47.86,138.75,138.65,0.17]
[1720450250256,7.2056,138.79,138.69,0.17]
[1720450250558,47.86,138.81,138.66,100.0]
[1720450250740,55.0661,138.77,138.65,0.17]
[1720450251057,7.2078,138.74,138.62,200.0]
[1720450251230,47.86,138.77,138.67,100.0]
[1720450251434,108.86169916,138.85,138.7,100.0]
[1720450251435,12.48322763,138.85,138.7,100.0]
[1720450251638,55.0629,138.84,138.72,100.0]
[1720450252053,47.86,138.84,138.76,100.0]
[1720450252232,47.86,138.88,138.77,0.17]
[1720450252575,47.86,138.95,138.83,100.0]
[1720450252869,47.86,138.95,138.84,0.17]
[1720450253082,47.86,138.95,138.86,0.17]
[1720450253756,17.9877,138.99,138.88,0.17]
[1720450253960,17.9877,138.99,138.8,7.2045]
[1720450253961,7.1986,138.92,138.85,100.0]
[1720450254274,47.86,138.98,138.86,0.17]
[1720450254576,7.1943,139.0,138.91,0.17]
[1720450254774,47.86,139.02,138.91,0.17]
[1720450255071,7.1938,139.01,138.93,0.17]
[1720450255242,47.86,139.02,138.93,0.17]
[1720450255444,55.0536,139.02,138.93,0.17]
[1720450255682,47.86,139.02,138.91,0.17]
[1720450255848,47.86,139.02,138.87,0.17]
[1720450256043,47.86,139.02,138.86,100.0]
[1720450256273,47.86,138.94,138.86,100.0]
[1720450256573,47.86,139.02,138.88,100.0]
[1720450256750,0.17,139.01,138.88,100.0]
[1720450257143,7.1948,138.99,138.88,100.0]
[1720450257381,7.1962,138.97,138.89,0.17]
[1720450257667,7.1962,138.97,138.78,18.0131]
[1720450257668,0.17,138.98,138.84,121.63]
[1720450257866,18.1543,139.01,138.77,115.0]
[1720450257867,0.17,138.96,138.86,100.0]
[1720450258039,0.34,138.96,138.84,100.0]
[1720450258243,0.34,138.96,138.87,100.0]
[1720450258455,27.1953,138.98,138.87,100.0]
[1720450258670,1.79912651,138.97,138.86,100.0]
[1720450258976,8.99492651,138.97,138.88,100.0]
[1720450259181,20.0,138.96,138.89,1.29228437]
[1720450259363,20.0,138.96,138.88,0.17]
[1720450259571,1.79937515,138.95,138.88,1.4406019]
[1720450259744,1.79940005,138.95,138.88,1.4406019]
[1720450259943,2.13940169,138.94,138.82,100.0]
[1720450260150,1.96940169,138.94,138.83,101.43952135]
[1720450260375,7.1983,138.93,138.83,100.0]
[1720450260587,1.79945058,139.0,138.9,100.0]
[1720450260796,1.79945058,139.0,138.91,1.4390927]
[1720450261291,7.1968,138.95,138.89,1.43924501]
[1720450261494,1.79945058,139.0,138.87,0.17]
[1720450261675,1.79945058,139.0,138.91,0.17]
[1720450261859,47.86,139.01,138.94,100.0]
[1720450262193,25.16864142,139.08,138.97,100.17]
[1720450262194,1.79851801,139.08,138.97,100.17]
[1720450262366,1.79778204,139.11,138.99,100.0]
[1720450262572,1.79750997,139.13,139.05,0.17]
[1720450262783,1.79710006,139.15,139.05,1.60749088]
[1720450263094,1.79728271,139.14,139.01,0.17]
[1720450263264,1.79728271,139.14,139.01,1.45832451]
[1720450263265,47.86,139.12,139.01,1.45832451]
[1720450263465,19.76998686,139.11,138.99,1.43822949]
[1720450263666,8.98721785,139.1,139.0,1.60849428]
[1720450263885,1.79746012,139.15,139.06,0.17]
[1720450264088,47.86,139.18,139.09,100.0]
[1720450264296,1.7963724,139.22,139.13,0.17]
[1720450264471,47.86,139.26,139.18,0.17]
[1720450264673,1.79554657,139.25,139.18,1.60643726]
[1720450264876,1.79589225,139.24,139.15,100.0]
[1720450265097,1.79564561,139.28,139.2,0.17]
[1720450265300,8.97564561,139.28,139.2,1.43324141]
[1720450265468,7.1829,139.22,139.13,0.17]
[1720450265669,47.86,139.3,139.11,100.0]
[1720450265670,49.65617921,139.21,139.11,100.0]
[1720450265912,49.65617921,139.21,139.05,100.0]
[1720450265913,7.1875,139.13,139.05,100.0]
[1720450266200,1.79699072,139.12,139.06,1.43759258]
[1720450266411,7.189,139.1,138.99,100.0]
[1720450266569,49.6576988,139.09,138.97,100.0]
[1720450266765,7.1915,139.06,138.95,100.0]
[1720450266992,7.1927,139.03,138.96,0.78862832]
[1720450267290,20.17,139.02,138.97,0.72995794]
[1720450267501,20.17,139.02,138.94,1.43870816]
[1720450267687,21.96852375,139.02,138.94,1.43870816]
[1720450267899,1.96852375,139.01,138.94,1.43870816]
[1720450268096,1.79876698,139.01,138.94,1.43870816]
[1720450268304,20.0,139.04,138.94,1.43870816]
[1720450268305,20.0,139.04,138.96,100.0]
[1720450268605,1.79818917,139.03,138.97,1.43839758]
[1720450268776,7.1928,139.03,138.93,1.43902215]
[1720450268982,20.0,139.02,138.98,100.0]
[1720450269283,1.79811053,139.11,139.03,100.0]
[1720450269487,7.1853,139.18,139.07,100.0]
[1720450269794,7.186,139.16,139.08,1.43181163]
[1720450270106,1.79665053,139.18,139.08,1.43181163]
[1720450270307,8.98090899,139.2,139.11,0.17]
[1720450270518,47.86,139.23,139.14,0.17]
[1720450270685,1.79616367,139.29,139.17,100.0]
[1720450270894,7.1805,139.27,139.19,100.0]
[1720450271107,1.79616367,139.29,139.18,100.0]
[1720450271282,1.79551479,139.28,139.16,0.17]
[1720450271603,47.86,139.3,139.2,100.0]
[1720450271604,1.79585897,139.29,139.2,100.0]
[1720450271805,1.79585897,139.29,139.18,0.17]
[1720450272003,1.79585897,139.29,139.18,101.38878909]
[1720450272307,28.782624,139.4,139.26,0.17]
[1720450272522,47.86,139.44,139.23,100.0]
[1720450272523,47.86,139.36,139.23,100.0]
[1720450272807,7.1808,139.26,139.18,100.0]
[1720450272990,7.1808,139.26,139.03,47.86]
[1720450272991,47.86,139.27,139.14,100.0]
[1720450273308,55.0403,139.27,139.15,100.0]
[1720450273599,47.86,139.27,139.15,100.0]
[1720450273800,47.86,139.27,139.11,100.0]
[1720450273979,47.86,139.27,139.03,47.86]
[1720450273980,47.86,139.22,139.09,100.0]
[1720450274188,47.86,139.3,139.08,100.0]
[1720450274189,7.1857,139.17,139.08,100.0]
[1720450274405,7.1865,139.15,139.04,100.0]
[1720450274704,7.1865,139.15,138.98,100.0]
[1720450274705,68.2,139.14,139.01,100.0]
[1720450274918,7.1895,139.1,139.01,100.0]
[1720450275208,0.17,139.13,139.02,100.0]
[1720450275209,20.0,139.09,139.02,100.0]
[1720450275510,7.3601,139.08,138.98,100.0]
[1720450275817,7.1928,139.03,138.94,100.0]
[1720450275983,47.86,139.06,138.96,100.0]
[1720450276182,20.17,139.05,138.94,21.63]
[1720450276508,0.17,139.04,138.93,100.0]
[1720450276689,20.17,139.05,138.97,100.0]
[1720450277007,20.0,139.05,138.97,100.0]
[1720450277208,20.0,139.06,138.97,100.0]
[1720450277407,47.86,139.09,138.97,100.0]
[1720450277408,7.5321,139.05,138.97,100.0]
[1720450277608,20.0,139.04,139.0,21.63]
[1720450277790,20.0,139.08,138.99,100.0]
[1720450278109,20.0,139.08,138.97,100.0]
[1720450278283,7.1923,139.04,138.97,100.0]
[1720450278488,20.0,139.03,138.97,100.0]
[1720450278695,20.0,139.03,138.88,100.0]
[1720450278696,20.0,139.03,138.9,100.0]
[1720450278902,20.0,139.03,138.93,100.0]
[1720450278903,67.86,139.03,138.93,100.0]
[1720450279104,7.1942,139.0,138.9,100.0]
[1720450279409,47.86,139.09,138.84,118.0062]
[1720450279410,68.03,138.99,138.88,100.0]
[1720450279599,7.1958,138.97,138.86,100.0]
[1720450279803,20.34,138.96,138.86,100.0]
[1720450279991,20.17,138.96,138.86,100.0]
[1720450280196,0.17,138.95,138.86,100.0]
[1720450280401,7.1977,138.94,138.86,100.0]
[1720450280719,20.34,138.93,138.86,100.0]
[1720450281221,20.17,138.93,138.86,100.0]
[1720450281510,20.0,138.94,138.89,100.0]
[1720450281694,20.0,138.94,138.87,100.0]
[1720450281897,47.86,138.97,138.86,100.0]
[1720450282107,7.1968,138.95,138.86,100.0]
[1720450282319,20.0,139.01,138.86,100.0]
[1720450282320,15.0,139.05,138.9,100.0]
[1720450282618,59.20965883,139.08,138.81,100.0]
[1720450282784,59.20965883,139.08,138.93,100.0]
[1720450282785,7.1921,139.05,138.93,100.0]
[1720450282981,17.9797,139.05,138.92,100.0]
[1720450283207,83.8146,139.07,138.92,0.17]
[1720450283208,47.86,139.02,138.92,0.17]
[1720450283394,47.86,139.02,138.9,0.17]
[1720450283583,7.1953,138.98,138.9,0.17]
[1720450283785,47.86,138.98,138.87,100.0]
[1720450284011,47.86,139.02,138.92,100.0]
[1720450284189,47.86,139.02,138.92,121.63]
[1720450284385,47.86,139.09,138.94,100.0]
[1720450284386,7.1913,139.06,138.94,100.0]
[1720450284615,47.86,139.16,139.01,100.0]
[1720450284616,7.1886,139.11,139.01,100.0]
[1720450284799,47.86,139.16,139.03,100.0]
[1720450285127,47.86,139.16,139.08,0.17]
[1720450285424,7.1886,139.11,139.01,100.0]
[1720450285622,47.86,139.15,139.02,100.17]
[1720450285931,47.86,139.16,139.02,0.17]
[1720450286098,65.8259,139.16,139.02,0.17]
[1720450286395,47.86,139.16,139.04,0.17]
[1720450287042,47.86,139.16,139.0,0.17]
[1720450287320,7.1918,139.05,138.95,100.0]
[1720450287513,7.1907,139.07,138.95,100.0]
[1720450288017,7.3615,139.06,138.95,100.0]
[1720450288195,27.3617,139.05,138.95,100.0]
[1720450288393,20.17,139.05,138.93,100.0]
[1720450288592,0.17,139.04,138.92,100.0]
[1720450288790,0.17,139.04,138.97,100.0]
[1720450289034,17.9825,139.03,138.89,100.0]
[1720450289194,20.34,139.02,138.9,100.0]
[1720450289390,7.1951,138.99,138.88,100.0]
[1720450289693,20.17,138.98,138.89,100.0]
[1720450289897,0.17,138.97,138.87,100.0]
[1720450290318,7.198,138.93,138.84,100.0]
[1720450290521,68.03,138.97,138.76,18.0161]
[1720450290733,68.03,138.97,138.63,273.42111721]
[1720450290734,7.1975,138.94,138.83,100.0]
[1720450290896,0.34,138.93,138.85,100.0]
[1720450291114,0.17,138.93,138.83,100.0]
[1720450291430,68.03,138.97,138.86,100.0]
[1720450291596,20.0,138.97,138.9,100.0]
[1720450291792,55.0534,139.02,138.9,121.63]
[1720450292013,17.9784,139.06,138.92,100.0]
[1720450292217,131.6687,139.09,138.9,100.0]
[1720450292218,17.9822,139.03,138.9,100.0]
[1720450292404,47.86,139.01,138.88,0.17]
[1720450292593,7.1959,138.97,138.88,100.0]
[1720450292795,47.86,139.01,138.86,100.0]
[1720450293018,65.8455,139.01,138.86,100.0]
[1720450293209,35.9588,139.05,138.83,200.0]
[1720450293210,7.1973,138.94,138.83,200.0]
[1720450293413,20.34,138.93,138.83,200.0]
[1720450293618,20.0,138.93,138.86,100.0]
[1720450293919,35.9688,139.01,138.67,89.67733729]
[1720450293920,17.9714,139.11,138.94,100.0]
[1720450294096,47.86,139.07,138.97,100.0]
[1720450294292,47.86,139.07,138.95,100.0]
[1720450294505,47.86,139.13,139.01,0.17]
[1720450294704,47.86,139.13,138.96,21.8]
[1720450294705,17.9701,139.12,138.96,100.0]
[1720450294938,7.1908,139.07,138.96,100.0]
[1720450295107,47.86,139.09,138.97,0.17]
[1720450295108,7.1905,139.08,138.97,0.17]
[1720450295300,7.1905,139.08,138.99,0.17]
[1720450295519,47.86,139.09,138.94,0.17]
[1720450295520,7.1929,139.03,138.94,0.17]
[1720450295732,7.1931,139.03,138.94,0.17]
[1720450295903,20.0,139.02,138.96,0.17]
[1720450296105,20.0,139.08,138.97,100.0]
[1720450296312,20.0,139.08,138.87,1.66576871]
[1720450296313,7.1967,138.96,138.87,1.66576871]
[1720450296512,17.9891,138.98,138.85,100.0]
[1720450296723,20.17,138.97,138.85,100.0]
[1720450296925,27.366,138.97,138.85,100.0]
[1720450297109,20.17,138.97,138.85,100.0]
[1720450297311,7.3659,138.97,138.85,100.0]
[1720450297514,20.0,138.96,138.87,100.0]
[1720450297730,0.17,138.97,138.91,100.0]
[1720450298063,0.17,138.98,138.89,100.0]
[1720450298250,7.5353,138.98,138.85,100.0]
[1720450298433,20.0,138.97,138.88,0.17]
[1720450298633,0.34,138.96,138.88,0.17]
[1720450298834,0.34,138.96,138.85,100.0]
[1720450299156,0.34,138.96,138.81,100.0]
[1720450299157,20.0,139.01,138.87,100.0]
[1720450299457,47.86,139.02,138.86,18.0032]
[1720450299758,47.86,139.02,138.83,100.0]
[1720450299957,47.86,138.97,138.8,100.0]
[1720450300132,7.1967,138.96,138.83,100.0]
[1720450300332,47.86,138.97,138.84,100.0]
[1720450300559,47.86,138.97,138.81,21.63]
[1720450300560,7.1983,138.93,138.81,21.63]
[1720450300759,20.34,138.92,138.84,121.63]
[1720450300965,0.34,138.92,138.84,121.63]
[1720450301267,0.34,138.92,138.85,100.0]
[1720450301562,0.17,138.91,138.82,21.63]
[1720450301764,20.0,138.91,138.82,21.63]
[1720450301965,0.17,138.9,138.83,21.63]
[1720450302337,0.17,138.92,138.83,21.63]
[1720450302541,0.17,138.92,138.78,121.63]
[1720450302542,7.1998,138.9,138.78,121.63]
[1720450302749,21.97024258,138.89,138.78,121.63]
[1720450303036,20.0,138.89,138.82,100.0]
[1720450303255,55.0559,138.97,138.85,21.63]
[1720450303564,47.86,138.97,138.86,21.63]
[1720450303734,1.79944045,138.96,138.83,100.0]
[1720450303941,1.79951239,138.95,138.85,0.17]
[1720450304134,55.0559,138.97,138.87,0.17]
[1720450304135,1.79942495,138.96,138.87,0.17]
[1720450304455,7.1993,138.91,138.77,100.0]
[1720450304644,1.8002368,138.9,138.81,21.63]
[1720450304844,1.8002368,138.9,138.82,1.44012088]
[1720450305046,20.0,138.92,138.82,100.0]
[1720450305457,1.79957462,139.01,138.87,100.0]
[1720450305657,7.1951,138.99,138.9,21.63]
[1720450305838,1.79902303,138.98,138.91,101.43830058]
[1720450306040,7.1938,139.01,138.92,0.17]
[1720450306361,1.79876319,139.08,138.97,0.17]
[1720450306543,1.79876319,139.08,138.81,100.0]
[1720450306544,47.86,139.0,138.86,100.0]
[1720450307270,47.86,139.0,138.87,100.0]
[1720450307639,47.86,139.0,138.86,21.63]
[1720450307870,20.0,138.99,138.86,21.63]
[1720450308160,20.0,138.99,138.85,100.0]
[1720450308335,20.0,138.99,138.89,100.0]
[1720450308540,1.96909676,138.98,138.86,100.0]
[1720450308770,1.96909676,138.98,138.9,121.63]
[1720450309073,1.79889397,138.98,138.91,1.43398628]
[1720450309238,1.79889397,138.98,138.88,1.43924667]
[1720450309667,0.17,138.97,138.88,1.43924667]
[1720450309869,17.998,138.91,138.78,100.0]
[1720450310041,0.17,138.95,138.78,100.0]
[1720450310042,1.97028851,138.9,138.78,100.0]
[1720450310241,1.9707346,138.89,138.76,100.0]
[1720450310470,7.3708,138.88,138.77,100.0]
[1720450310670,21.97045565,138.87,138.74,21.63]
[1720450311050,21.97045565,138.87,138.74,28.8376]
[1720450311051,0.17,138.86,138.74,28.8376]
[1720450311271,21.80054797,138.86,138.77,100.0]
[1720450311468,21.80054797,138.86,138.73,7.2081]
[1720450311469,0.34,138.85,138.73,100.0]
[1720450311768,0.34,138.85,138.74,21.63]
[1720450312080,50.00109352,138.85,138.68,100.0]
[1720450312251,7.2047,138.8,138.66,100.0]
[1720450312447,22.14169787,138.79,138.67,100.0]
[1720450312770,22.14169787,138.79,138.68,21.63]
[1720450312951,22.14169787,138.79,138.6,200.0]
[1720450312952,47.86,138.74,138.6,200.0]
[1720450313176,1.80266615,138.73,138.6,100.0]
[1720450313395,21.97266615,138.73,138.63,100.0]
[1720450313566,0.17,138.72,138.6,100.0]
[1720450313762,1.97240778,138.72,138.6,100.0]
[1720450313991,0.17,138.71,138.62,100.0]
[1720450314190,7.2099,138.7,138.57,100.0]
[1720450314397,20.34,138.69,138.55,100.0]
[1720450314602,1.80356497,138.68,138.56,1.44285198]
[1720450314763,2.14340354,138.67,138.55,100.0]
[1720450314969,0.17,138.66,138.55,100.0]
[1720450315165,1.97333645,138.66,138.56,1.44266916]
[1720450315379,0.17,138.65,138.56,1.44266916]
[1720450315592,1.80322309,138.68,138.58,100.0]
[1720450315798,0.17,138.67,138.57,100.0]
[1720450315995,0.17,138.67,138.55,18.043]
[1720450316205,0.17,138.67,138.58,100.0]
[1720450316703,1.80290661,138.7,138.58,200.0]
[1720450316996,1.80269125,138.72,138.59,0.17]
[1720450317380,1.80235955,138.71,138.64,0.17]
[1720450317570,1.80250264,138.73,138.61,100.0]
[1720450317906,1.80250098,138.73,138.62,1.44200078]
[1720450318194,47.86,138.81,138.63,118.0329]
[1720450318195,1.80229903,138.8,138.63,118.0329]
[1720450318399,1.80200242,138.79,138.63,25.2462]
[1720450318701,1.8019412,138.78,138.58,100.0]
[1720450318995,47.86,138.76,138.6,121.63]
[1720450319205,1.80230533,138.75,138.62,100.0]
[1720450319403,1.80230533,138.75,138.62,118.0345]
[1720450319704,1.80208726,138.8,138.63,1.44158962]
[1720450319905,9.00704849,138.79,138.63,7.2134]
[1720450320085,1.80184849,138.79,138.63,0.17]
[1720450320271,9.00724849,138.79,138.68,0.17]
[1720450320467,18.0142,138.78,138.64,100.0]
[1720450320667,7.2083,138.73,138.6,1.66901371]
[1720450320889,1.80279048,138.72,138.61,1.44223239]
[1720450321098,1.80279048,138.72,138.57,118.0412]
[1720450321400,0.34,138.71,138.57,25.2577]
[1720450321695,0.34,138.71,138.61,100.0]
[1720450321696,2.14280079,138.71,138.61,100.0]
[1720450321874,1.80256325,138.7,138.57,1.32871797]
[1720450322072,1.80256325,138.7,138.54,100.0]
[1720450322073,48.03,138.69,138.55,1.44275283]
[1720450322275,21.97344251,138.68,138.55,1.44275283]
[1720450322500,47.86,138.65,138.52,100.0]
[1720450322669,29.35726487,138.64,138.5,0.04278287]
[1720450322874,22.14396487,138.64,138.5,0.04278287]
[1720450323174,5.94003525,138.78,138.61,100.0]
[1720450323175,47.86,138.78,138.61,100.0]
[1720450323488,47.86,138.81,138.56,15.0]
[1720450323489,47.86,138.81,138.65,100.0]
[1720450323687,1.80184439,138.8,138.65,100.0]
[1720450323895,1.80184439,138.8,138.66,1.29973242]
[1720450324195,1.80184439,138.8,138.66,0.17]
[1720450324406,7.2066,138.77,138.68,0.17]
[1720450324608,1.80221093,138.76,138.66,1.44160453]
[1720450324782,7.2084,138.73,138.63,100.0]
[1720450324993,9.01132528,138.72,138.6,100.0]
[1720450325185,47.86,138.74,138.6,100.0]
[1720450325390,47.86,138.74,138.55,18.0435]
[1720450325391,7.2115,138.67,138.55,100.0]
[1720450325703,21.80372971,138.66,138.53,100.0]
[1720450325906,7.2138,138.63,138.52,1.44295662]
[1720450326204,0.17,138.65,138.5,100.04278287]
[1720450326205,21.97409097,138.62,138.53,100.0]
[1720450326380,21.97409097,138.62,138.5,121.67278287]
[1720450326381,0.17,138.61,138.51,100.0]
[1720450326579,1.80384862,138.6,138.5,100.04278287]
[1720450326773,0.34,138.61,138.5,200.04278287]
[1720450326774,0.17,138.59,138.5,200.04278287]
[1720450327476,0.17,138.59,138.5,100.04278287]
[1720450327678,0.17,138.59,138.5,0.04278287]
[1720450327891,0.17,138.56,138.5,0.04278287]
[1720450328093,48.03,138.53,138.5,0.04278287]
[1720450328384,7.2196,138.51,138.5,0.04278287]
[1720450328682,7.221,138.49,138.37,100.0]
[1720450328994,20.17,138.5,138.4,100.0]
[1720450329193,7.2214,138.48,138.41,0.56015993]
[1720450329501,70.48623163,138.47,138.36,100.0]
[1720450329705,21.80550196,138.46,138.37,100.0]
[1720450329896,0.34,138.45,138.37,100.0]
[1720450330072,20.0,138.5,138.39,121.63]
[1720450330276,20.0,138.5,138.41,100.0]
[1720450330471,1.80526096,138.49,138.39,100.0]
[1720450330693,21.80543083,138.52,138.41,100.0]